bitfinex/quotes_ETHUSD_20250721
["timestamp","ask_amount","ask_price","bid_price","bid_amount"]
[1753073671342,6.74452478,3762.9,3762.8,2.0]
[1753073671542,7.20812478,3762.9,3762.8,2.0]
[1753073672142,4.5506,3762.9,3762.8,2.0]
[1753073672639,4.087,3762.9,3762.8,2.0]
[1753073673361,6.74452478,3762.9,3762.8,2.0]
[1753073674046,4.087,3762.9,3762.8,2.0]
[1753073674251,6.74452478,3762.9,3762.8,2.0]
[1753073674670,4.087,3762.9,3762.8,2.0]
[1753073675676,1e-08,3763.2,3762.8,3.74731924]
[1753073675980,4.087,3763.1,3762.9,0.4301]
[1753073676174,1e-08,3763.2,3762.9,0.4301]
[1753073676350,4.087,3763.1,3762.9,0.4301]
[1753073677766,4.087,3763.0,3762.9,0.4301]
[1753073677957,1e-08,3763.2,3763.0,0.4301]
[1753073678156,4.086,3763.1,3762.8,3.31721924]
[1753073678678,6.74343726,3763.1,3762.8,2.0]
[1753073678971,7.20703726,3763.1,3762.8,2.0]
[1753073679267,6.74343726,3763.1,3762.8,2.0]
[1753073680543,2.65743726,3763.1,3762.8,2.0]
[1753073680748,4.086,3763.0,3762.8,2.0]
[1753073682280,2.65732898,3763.2,3762.8,2.0]
[1753073682497,4.086,3763.1,3762.9,0.4304]
[1753073682640,4.086,3763.1,3763.0,0.4304]
[1753073682845,4.086,3763.1,3762.8,2.53238]
[1753073683278,6.74339164,3763.1,3762.8,2.53238]
[1753073684479,2.65752478,3762.9,3762.8,2.0]
[1753073684682,3.09962478,3762.9,3762.8,2.0]
[1753073684885,3.23242478,3762.9,3762.8,2.0]
[1753073685258,3.49612478,3762.9,3762.8,2.0]
[1753073687896,7.58112478,3762.9,3762.8,2.0]
[1753073688066,8.60497643,3762.9,3762.8,2.0]
[1753073690102,11.60497643,3762.9,3762.8,2.0]
[1753073691201,5.6575954,3762.8,3762.7,2.0]
[1753073691391,6.3633954,3762.8,3762.7,2.0]
[1753073694993,10.4483954,3762.8,3762.7,2.0]
[1753073695305,11.02000216,3762.8,3762.7,2.0]
[1753073697596,6.93500216,3762.8,3762.7,2.0]
[1753073697770,11.02000216,3762.8,3762.7,2.0]
[1753073698577,0.57160676,3762.8,3762.7,2.0]
[1753073698813,0.1328,3762.9,3762.7,2.0]
[1753073699113,6.7425954,3762.8,3762.7,2.0]
[1753073700304,0.1328,3762.9,3762.7,2.0]
[1753073700479,4.085,3762.8,3762.7,2.0]
[1753073700681,0.1328,3762.9,3762.7,2.0]
[1753073700880,4.084,3762.8,3762.7,2.0]
[1753073701483,6.7415954,3762.8,3762.7,2.0]
[1753073701672,2.6575954,3762.8,3762.7,2.0]
[1753073701874,4.084,3762.8,3762.7,2.0]
[1753073704290,6.7415954,3762.8,3762.7,2.0]
[1753073706316,7.4473954,3762.8,3762.7,2.0]
[1753073706482,8.47116208,3762.8,3762.7,2.0]
[1753073708628,8.47016208,3762.8,3762.7,2.0]
[1753073710086,11.47016208,3762.8,3762.7,2.0]
[1753073712818,7.38716208,3762.8,3762.7,2.0]
[1753073713019,11.47016208,3762.8,3762.7,2.0]
[1753073716232,5.65766603,3762.7,3762.6,0.001]
[1753073716433,7.50165793,3762.7,3762.6,0.001]
[1753073716647,7.47565776,3762.7,3762.6,0.001]
[1753073719863,11.55765776,3762.7,3762.6,0.001]
[1753073720008,11.55765776,3762.7,3761.3,0.8075]
[1753073720009,2.65816055,3762.0,3761.3,0.8075]
[1753073720214,9.76616072,3762.0,3761.3,0.8075]
[1753073720415,9.74016055,3762.0,3761.3,0.8075]
[1753073720810,11.19652723,3762.0,3761.3,0.001]
[1753073723129,2.65858456,3761.4,3761.3,0.001]
[1753073723336,9.74058456,3761.4,3761.3,0.001]
[1753073724442,10.43688456,3761.4,3761.3,0.001]
[1753073724914,11.00857629,3761.4,3761.3,0.001]
[1753073725112,6.92657629,3761.4,3761.3,0.001]
[1753073725315,9.74058456,3761.4,3761.3,0.001]
[1753073726237,2.65858456,3761.4,3761.3,0.001]
[1753073726561,6.74058456,3761.4,3761.3,0.001]
[1753073728699,6.74058456,3761.4,3761.3,0.438]
[1753073729337,2.65858456,3761.4,3761.3,0.438]
[1753073729659,6.74058456,3761.4,3761.3,0.438]
[1753073730535,6.377,3761.9,3761.3,0.438]
[1753073730536,3.0,3761.8,3761.3,0.438]
[1753073730731,4.082,3761.7,3761.3,0.438]
[1753073730937,2.65851389,3761.5,3761.4,0.437]
[1753073731154,6.74051389,3761.5,3761.3,0.001]
[1753073731363,2.65838566,3761.7,3761.3,0.001]
[1753073731559,2.65835692,3761.8,3761.3,0.001]
[1753073731879,0.1328,3761.4,3761.3,0.63482041]
[1753073732087,4.2148,3761.4,3761.3,0.63482041]
[1753073732278,4.2148,3761.4,3761.3,1.42002041]
[1753073732433,4.2148,3761.4,3761.3,1.85702041]
[1753073732794,4.2138,3761.4,3761.3,1.85702041]
[1753073734260,0.1328,3761.4,3761.3,1.85702041]
[1753073734465,4.2138,3761.4,3761.3,1.85702041]
[1753073734934,0.1328,3761.4,3761.3,1.85702041]
[1753073735141,4.2138,3761.4,3761.3,1.85702041]
[1753073737007,4.2138,3761.4,3761.3,1.2232]
[1753073737906,7.30498456,3761.4,3761.3,0.001]
[1753073738503,6.87238456,3761.4,3761.3,0.001]
[1753073740092,6.87138456,3761.4,3761.3,0.001]
[1753073740258,2.79138456,3761.4,3761.3,0.001]
[1753073740461,6.87138456,3761.4,3761.3,0.4586]
[1753073741172,6.87138456,3761.4,3761.3,0.001]
[1753073743789,2.79138456,3761.4,3761.3,0.001]
[1753073744008,6.87138456,3761.4,3761.3,0.001]
[1753073745109,4.20477313,3761.4,3761.3,0.001]
[1753073745392,8.28477313,3761.4,3761.3,0.001]
[1753073747860,3.74437313,3761.4,3761.3,0.001]
[1753073748188,6.87138456,3761.4,3761.3,0.001]
[1753073749104,2.79138456,3761.4,3761.3,0.001]
[1753073749298,6.87038456,3761.4,3761.3,0.001]
[1753073749509,6.87038456,3761.4,3761.3,0.4586]
[1753073749684,2.79138456,3761.4,3761.3,0.001]
[1753073749880,6.87038456,3761.4,3761.3,0.001]
[1753073751704,8.28367313,3761.4,3761.3,0.001]
[1753073753390,7.82327313,3761.4,3761.3,0.001]
[1753073753790,6.87038456,3761.4,3761.3,0.001]
[1753073754673,2.79138456,3761.4,3761.3,0.001]
[1753073754911,6.87038456,3761.4,3761.3,0.4586]
[1753073755781,6.87038456,3761.4,3761.3,0.001]
[1753073756479,2.79138456,3761.4,3761.3,0.001]
[1753073756679,6.87038456,3761.4,3761.3,0.001]
[1753073757107,2.79138456,3761.4,3761.3,0.001]
[1753073757312,6.86938456,3761.4,3761.3,0.001]
[1753073757707,2.79138456,3761.4,3761.3,0.001]
[1753073757909,6.86938456,3761.4,3761.3,0.001]
[1753073762000,0.1328,3761.4,3761.3,0.4586]
[1753073762334,4.2108,3761.4,3761.3,0.4586]
[1753073764649,4.2098,3761.4,3761.3,0.4586]
[1753073765405,2.66023357,3761.9,3761.3,0.4586]
[1753073765406,0.002,3761.9,3761.3,1.59884561]
[1753073765602,0.002,3761.9,3761.4,0.4576]
[1753073765603,4.2098,3761.8,3761.4,0.4576]
[1753073765818,4.2098,3761.8,3761.5,2.6584615]
[1753073766146,4.2098,3761.8,3761.6,0.4576]
[1753073766652,0.1328,3761.8,3761.7,0.4576]
[1753073766950,4.2098,3761.8,3761.7,1.2841]
[1753073767854,4.2088,3761.8,3761.7,4.60258478]
[1753073768709,0.002,3761.9,3761.8,2.65830187]
[1753073768935,4.078,3761.9,3761.8,3.11590187]
[1753073769271,0.002,3761.9,3761.8,3.94240187]
[1753073769586,4.078,3761.9,3761.8,3.94240187]
[1753073769738,0.002,3761.9,3761.8,5.04751203]
[1753073771976,0.002,3761.9,3761.8,5.07409504]
[1753073772281,0.002,3761.9,3761.8,5.73031203]
[1753073773074,0.002,3761.9,3761.8,9.80531203]
[1753073776302,0.002,3761.9,3761.8,5.18031203]
[1753073782632,0.002,3761.9,3761.8,8.83772702]
[1753073784711,0.002,3761.9,3761.8,12.91072702]
[1753073786918,0.002,3761.9,3761.8,0.9593]
[1753073787225,0.002,3761.9,3761.8,0.1328]
[1753073788138,0.002,3761.9,3761.5,7.51641325]
[1753073788310,0.002,3761.9,3761.6,2.79123435]
[1753073788511,0.002,3761.9,3761.8,2.65830187]
[1753073788712,0.002,3761.9,3761.8,6.31571686]
[1753073788911,0.002,3761.9,3761.8,6.77261686]
[1753073789345,0.002,3761.9,3761.8,6.77361686]
[1753073790625,0.002,3761.9,3761.8,8.99849198]
[1753073790941,0.002,3761.9,3761.8,9.13129198]
[1753073791914,1e-08,3761.9,3761.8,12.68129198]
[1753073792112,0.1348,3762.7,3761.8,12.68129198]
[1753073792113,0.002,3762.7,3762.6,3.48653667]
[1753073792348,0.002,3762.7,3762.6,11.24252902]
[1753073792669,0.002,3762.7,3762.6,13.06288684]
[1753073796352,1e-08,3762.8,3762.7,3.99476603]
[1753073796556,1e-08,3762.8,3762.7,6.99476603]
[1753073796862,1e-08,3762.8,3762.7,7.45166603]
[1753073798354,1e-08,3763.2,3763.1,2.65738354]
[1753073798563,1e-08,3763.2,3763.1,11.73095764]
[1753073798769,1e-08,3763.2,3763.1,11.70438381]
[1753073798937,1e-08,3763.2,3763.1,12.16128381]
[1753073801151,1e-08,3763.2,3763.1,8.09028381]
[1753073801352,1e-08,3763.2,3763.1,12.16028381]
[1753073802078,1e-08,3763.2,3763.1,15.29308381]
[1753073805267,1e-08,3763.2,3763.1,7.10876882]
[1753073805463,1e-08,3763.2,3763.1,11.17776882]
[1753073805790,1e-08,3763.2,3763.1,11.65086882]
[1753073806480,1e-08,3763.2,3763.1,8.65086882]
[1753073807070,1e-08,3763.2,3763.1,8.17776882]
[1753073807256,1e-08,3763.2,3763.1,7.39066882]
[1753073807458,0.43950001,3763.2,3763.0,2.65745001]
[1753073807967,0.4395,3763.1,3762.9,2.65751723]
[1753073808169,0.4395,3763.0,3762.9,2.65751723]
[1753073808791,0.4395,3763.0,3762.8,2.65757553]
[1753073808971,0.26370001,3763.2,3762.9,2.6575137]
[1753073809604,0.4395,3763.1,3762.9,2.6575137]
[1753073809799,0.26370001,3763.2,3762.9,2.6575137]
[1753073810096,0.4395,3763.0,3762.9,2.6575137]
[1753073811057,0.4395,3763.0,3762.5,2.65778578]
[1753073811260,0.7032,3762.9,3762.4,2.79065656]
[1753073811490,0.1328,3762.7,3762.4,2.65785656]
[1753073811794,0.4395,3762.6,3762.4,2.65785656]
[1753073812016,0.4395,3762.5,3762.1,0.1328]
[1753073812307,0.3965,3762.4,3762.0,2.65815852]
[1753073812505,0.4395,3762.3,3762.0,2.65815852]
[1753073812706,0.3965,3762.4,3762.0,2.65815852]
[1753073813013,0.4395,3762.2,3762.0,2.6581138]
[1753073813157,0.4395,3762.1,3762.0,2.6581138]
[1753073813362,0.3965,3762.4,3762.1,2.65807194]
[1753073813611,0.836,3762.4,3762.2,2.65796842]
[1753073815068,0.836,3762.4,3762.3,2.65794859]
[1753073815407,0.836,3762.4,3762.2,2.65800284]
[1753073815965,0.3965,3762.4,3762.3,2.65794859]
[1753073816164,0.3965,3762.4,3762.0,2.6581525]
[1753073816165,0.3965,3762.4,3762.2,2.65799879]
[1753073816361,0.3965,3762.4,3762.3,2.65794859]
[1753073816694,0.3965,3762.4,3762.2,2.65800434]
[1753073816895,0.3965,3762.4,3762.3,2.65794859]
[1753073818369,0.836,3762.4,3762.3,2.65794859]
[1753073820071,0.836,3762.4,3762.2,2.65801248]
[1753073820272,0.4395,3762.3,3762.2,2.65800451]
[1753073820866,2.65816055,3762.0,3761.9,0.001]
[1753073821066,0.68868606,3762.0,3761.9,0.001]
[1753073821262,3.78634661,3762.0,3761.9,0.001]
[1753073822109,3.98775386,3762.0,3761.9,0.001]
[1753073822282,1.32959331,3762.0,3761.9,0.001]
[1753073822481,3.98775386,3762.0,3761.9,0.001]
[1753073823815,1.32959331,3762.0,3761.9,0.001]
[1753073824314,3.98775386,3762.0,3761.9,0.001]
[1753073826446,0.59790725,3762.0,3761.9,0.001]
[1753073826582,4.1998,3762.0,3761.9,0.001]
[1753073826768,0.1328,3762.0,3761.9,0.001]
[1753073827104,0.5723,3762.0,3761.9,0.001]
[1753073827275,3.23046055,3762.0,3761.9,0.001]
[1753073827474,4.51867996,3762.0,3761.9,0.001]
[1753073827675,4.54468013,3762.0,3761.9,0.001]
[1753073828189,4.51867996,3762.0,3761.9,0.001]
[1753073828404,4.903,3762.0,3761.9,0.001]
[1753073828574,7.55830355,3762.0,3761.9,0.001]
[1753073829186,4.900143,3762.0,3761.9,0.001]
[1753073829609,0.833143,3762.0,3761.9,0.001]
[1753073829902,4.196943,3762.0,3761.9,0.001]
[1753073830709,4.39227739,3762.0,3761.9,0.001]
[1753073831403,4.84657739,3762.0,3761.9,0.001]
[1753073832779,4.39227739,3762.0,3761.9,0.001]
[1753073834500,4.84657739,3762.0,3761.9,0.001]
[1753073834699,7.53073811,3762.0,3761.9,0.001]
[1753073835025,7.50473794,3762.0,3761.9,0.001]
[1753073835334,4.84657739,3762.0,3761.9,0.001]
[1753073835622,4.87257756,3762.0,3761.9,0.001]
[1753073837127,4.84657739,3762.0,3761.9,0.001]
[1753073837512,4.87257756,3762.0,3761.9,0.001]
[1753073838335,4.84657739,3762.0,3761.9,0.001]
[1753073838500,0.32527739,3762.0,3761.9,0.001]
[1753073838699,4.39127739,3762.0,3761.9,0.001]
[1753073838935,0.32527739,3762.0,3761.9,1.33111407]
[1753073839224,4.195943,3762.0,3761.9,3.98934528]
[1753073839519,4.195943,3762.0,3761.9,0.89861407]
[1753073839830,4.195943,3762.0,3761.9,3.55684528]
[1753073840330,4.195943,3762.0,3761.9,3.98934528]
[1753073840529,4.195943,3762.0,3761.9,1.33111407]
[1753073841391,4.195943,3762.0,3761.9,0.001]
[1753073843593,4.650243,3762.0,3761.9,0.001]
[1753073844627,4.195943,3762.0,3761.9,0.001]
[1753073845299,0.129943,3762.0,3761.9,2.65923121]
[1753073845505,4.195943,3762.0,3761.9,3.86513121]
[1753073845726,0.129943,3762.0,3761.9,4.88597572]
[1753073846037,0.19914112,3762.2,3762.1,2.65808989]
[1753073846199,0.1328,3762.3,3762.2,2.65800193]
[1753073846395,4.1978,3762.3,3762.1,3.09056259]
[1753073847333,4.1978,3762.3,3762.2,2.65801924]
[1753073847540,0.1328,3762.3,3762.2,2.65801924]
[1753073847708,0.32992879,3762.7,3762.6,2.65772914]
[1753073847897,4.39492879,3762.7,3762.6,2.65772914]
[1753073848600,4.39492879,3762.7,3762.5,2.65779138]
[1753073848800,0.32992879,3762.7,3762.6,2.65773667]
[1753073849024,0.1328,3762.7,3762.6,3.09023667]
[1753073849238,0.1328,3762.7,3762.6,3.7450961]
[1753073849533,4.1978,3762.7,3762.6,3.7450961]
[1753073849710,4.1978,3762.7,3762.6,3.09023667]
[1753073849894,4.065,3762.7,3762.6,3.09023667]
[1753073850917,0.20262301,3763.1,3762.8,2.6575954]
[1753073851122,4.065,3763.0,3762.9,2.65752478]
[1753073851935,0.2637,3762.9,3762.4,2.6578696]
[1753073852099,0.2637,3762.9,3761.7,2.65831785]
[1753073852100,0.2637,3762.5,3761.7,0.1328]
[1753073852307,0.1328,3762.3,3761.7,0.1328]
[1753073852500,0.1328,3762.3,3761.7,2.79114997]
[1753073852708,0.4543,3762.2,3761.7,2.65834997]
[1753073852915,4.09000017,3762.1,3761.7,2.65834997]
[1753073853315,4.54430017,3762.1,3761.7,2.65834997]
[1753073853831,0.4543,3762.0,3761.6,2.65838191]
[1753073854046,0.4543,3762.0,3761.7,2.65836087]
[1753073854545,0.4543,3762.0,3761.7,2.65833781]
[1753073856046,4.064,3762.1,3761.8,2.65929264]
[1753073857352,4.064,3762.1,3761.8,0.001]
[1753073857651,4.064,3762.0,3761.8,0.001]
[1753073858153,4.54430017,3762.0,3761.8,0.001]
[1753073859114,4.5183,3762.0,3761.8,0.001]
[1753073859349,4.54430017,3762.0,3761.8,0.001]
[1753073859537,4.5183,3762.0,3761.8,0.001]
[1753073861523,4.5183,3762.0,3761.8,2.65928395]
[1753073861524,4.064,3762.0,3761.8,2.65928395]
[1753073861720,4.064,3762.0,3761.8,0.001]
[1753073861926,2.65788444,3762.4,3761.8,2.65929631]
[1753073862138,4.064,3762.3,3761.8,2.65929631]
[1753073863259,4.5119,3762.3,3761.8,0.001]
[1753073863559,4.5119,3762.3,3761.8,2.65928985]
[1753073864938,4.5119,3762.3,3761.8,0.001]
[1753073865140,0.4479,3762.2,3761.8,0.001]
[1753073865342,4.063,3762.1,3761.8,0.001]
[1753073865528,4.5109,3762.1,3761.8,0.001]
[1753073865961,4.063,3762.1,3761.8,0.001]
[1753073867949,4.063,3762.1,3761.8,2.65928677]
[1753073868150,4.063,3762.1,3761.8,0.001]
[1753073868383,0.02600017,3762.0,3761.8,0.001]
[1753073868552,0.47390017,3762.0,3761.8,0.001]
[1753073869984,0.4479,3762.0,3761.8,0.001]
[1753073870183,3.13206072,3762.0,3761.8,0.001]
[1753073870692,4.11737072,3762.0,3761.8,0.001]
[1753073871378,1.45921017,3762.0,3761.8,0.001]
[1753073871684,1.43321,3762.0,3761.8,0.001]
[1753073871885,0.4479,3762.0,3761.8,0.001]
[1753073872100,3.13206072,3762.0,3761.8,0.001]
[1753073873605,0.4479,3762.0,3761.8,0.001]
[1753073873750,6.72109239,3762.1,3761.8,0.001]
[1753073873949,2.65816055,3762.0,3761.8,0.001]
[1753073874186,0.4479,3762.0,3761.8,0.001]
[1753073876087,4.063,3762.1,3761.8,0.001]
[1753073877452,7.16900911,3762.1,3761.8,0.001]
[1753073877884,6.72110911,3762.1,3761.8,0.001]
[1753073878185,2.65795962,3762.3,3761.8,0.001]
[1753073878386,0.4479,3762.0,3761.8,0.001]
[1753073878591,10.16806055,3762.0,3761.8,0.001]
[1753073878792,10.43176055,3762.0,3761.8,0.001]
[1753073883108,10.16806055,3762.0,3761.8,0.001]
[1753073894407,10.43176055,3762.0,3761.8,0.001]
[1753073894612,11.4244813,3762.0,3761.8,0.001]
[1753073895782,10.7118813,3762.0,3761.8,0.001]
[1753073896095,9.71916055,3762.0,3761.8,0.001]
[1753073896819,9.72116055,3762.0,3761.8,0.001]
[1753073898110,7.063,3762.0,3761.8,0.001]
[1753073898419,9.72116055,3762.0,3761.8,0.001]
[1753073903216,7.063,3762.0,3761.8,0.001]
[1753073903532,7.062,3762.0,3761.8,0.001]
[1753073903834,9.72016055,3762.0,3761.8,0.001]
[1753073904886,11.03063876,3762.0,3761.8,0.001]
[1753073905087,11.49353876,3762.0,3761.8,0.001]
[1753073905502,1.31247821,3762.0,3761.8,0.001]
[1753073905732,4.062,3762.0,3761.9,0.4337]
[1753073905940,4.062,3762.0,3761.9,0.001]
[1753073906151,6.72016055,3762.0,3761.9,0.001]
[1753073906725,7.18306055,3762.0,3761.9,0.001]
[1753073907743,6.72016055,3762.0,3761.9,0.001]
[1753073908312,7.70427437,3762.0,3761.9,0.001]
[1753073909029,8.16717437,3762.0,3761.9,0.001]
[1753073916740,8.36272828,3762.0,3761.9,0.001]
[1753073917951,11.36272828,3762.0,3761.9,0.001]
[1753073920427,10.89782828,3762.0,3761.9,0.001]
[1753073920627,0.19755391,3762.0,3761.9,0.001]
[1753073920858,0.19755391,3762.0,3761.9,0.4608]
[1753073920859,4.25555391,3762.0,3761.9,0.4608]
[1753073921362,0.19755391,3762.0,3761.9,0.4608]
[1753073921530,4.25555391,3762.0,3761.9,0.4608]
[1753073924567,4.25555391,3762.0,3761.9,0.001]
[1753073925040,0.22355408,3762.0,3761.9,0.001]
[1753073925247,4.28155408,3762.0,3761.9,0.001]
[1753073927770,7.34671446,3762.0,3761.9,0.001]
[1753073928065,11.34719366,3762.0,3761.9,0.001]
[1753073940456,10.91419366,3762.0,3761.9,0.001]
[1753073942142,5.85571446,3762.0,3761.9,0.4608]
[1753073942347,0.19755391,3762.0,3761.9,0.4608]
[1753073942669,4.25355391,3762.0,3761.9,0.4608]
[1753073942838,4.25255391,3762.0,3761.9,0.4608]
[1753073944866,4.057,3762.0,3761.9,0.4608]
[1753073945980,6.71516055,3762.0,3761.9,0.4608]
[1753073946749,6.71516055,3762.0,3761.9,0.001]
[1753073948278,4.057,3762.0,3761.9,0.001]
[1753073948464,4.08300017,3762.0,3761.9,0.001]
[1753073948883,6.74116072,3762.0,3761.9,0.001]
[1753073949087,6.71516055,3762.0,3761.9,0.001]
[1753073949282,6.91623201,3762.0,3761.9,0.001]
[1753073950058,11.34996264,3762.0,3761.9,0.001]
[1753073952894,10.91696264,3762.0,3761.9,0.001]
[1753073953193,9.91623201,3762.0,3761.9,0.001]
[1753073953962,3.20307146,3762.0,3761.9,0.001]
[1753073954203,4.25707146,3762.0,3761.9,0.4475]
[1753073954564,6.94123218,3762.0,3761.9,0.001]
[1753073954860,6.91523201,3762.0,3761.9,0.001]
[1753073955201,8.34245819,3762.0,3761.9,0.001]
[1753073955403,6.91523201,3762.0,3761.9,0.001]
[1753073958003,0.1328,3761.9,3761.6,0.41124049]
[1753073958169,4.054,3761.8,3761.5,0.7942]
[1753073959997,4.054,3761.8,3761.6,0.4465]
[1753073960361,4.054,3761.8,3761.5,0.7942]
[1753073960563,0.1328,3761.6,3761.5,0.7942]
[1753073960768,4.1858,3761.6,3761.5,0.7942]
[1753073961592,4.1858,3761.6,3761.5,1.2407]
[1753073963001,4.1858,3761.6,3761.5,3.89921389]
[1753073963508,4.1858,3761.6,3761.5,1.2407]
[1753073964410,4.1858,3761.6,3761.5,3.89921389]
[1753073965109,4.1858,3761.6,3761.5,1.2407]
[1753073965814,4.1858,3761.6,3761.5,3.89921389]
[1753073968615,4.1858,3761.6,3761.5,1.2407]
[1753073970203,4.1858,3761.6,3761.5,3.89921389]
[1753073971118,4.1858,3761.6,3761.5,1.2407]
[1753073974519,4.1858,3761.6,3761.5,0.4465]
[1753073976589,4.1858,3761.6,3761.3,3.46653456]
[1753073976791,4.1858,3761.6,3761.4,0.4465]
[1753073976991,4.1858,3761.6,3761.4,3.10504165]
[1753073977193,4.1858,3761.6,3761.4,0.4465]
[1753073977400,4.1858,3761.6,3761.4,2.65856567]
[1753073977721,4.1858,3761.6,3761.5,0.4465]
[1753073978503,4.1858,3761.6,3761.3,3.9130426]
[1753073978801,4.1858,3761.6,3761.4,0.4465]
[1753073979519,4.1858,3761.6,3761.3,0.8079]
[1753073979700,4.1858,3761.6,3761.4,0.4465]
[1753073981798,4.1858,3761.6,3761.5,0.452]
[1753073982425,4.1858,3761.6,3761.3,1.2599]
[1753073982609,4.1858,3761.6,3761.3,0.8079]
[1753073982809,4.1858,3761.6,3761.4,0.452]
[1753073984342,4.1858,3761.6,3761.4,0.453]
[1753073988733,4.1858,3761.6,3761.4,0.001]
[1753073988916,4.1858,3761.6,3761.5,0.452]
[1753073989244,4.1858,3761.6,3761.5,3.11051389]
[1753073989245,0.1328,3761.6,3761.5,3.11051389]
[1753073989426,0.002,3761.8,3761.7,2.65837254]
[1753073989626,4.052,3761.8,3761.7,2.65837254]
[1753073990001,4.052,3761.8,3761.7,3.11037254]
[1753073990836,0.002,3761.8,3761.7,0.452]
[1753073992310,0.002,3761.8,3761.6,2.6584297]
[1753073992511,0.002,3761.8,3761.5,0.8188]
[1753073992734,0.1348,3761.8,3761.5,0.8188]
[1753073993336,0.1348,3761.8,3761.5,1.2708]
[1753073994331,0.1348,3761.8,3761.6,3.11039754]
[1753073994730,0.1348,3761.8,3761.7,3.11037254]
[1753073995110,0.1348,3761.8,3761.7,0.452]
[1753073995844,0.1348,3761.8,3761.7,3.11037254]
[1753073996041,0.002,3761.8,3761.7,3.11037254]
[1753073996221,0.002,3761.8,3761.7,4.13498208]
[1753073998308,0.002,3761.8,3761.7,3.11037254]
[1753074000946,0.002,3761.8,3761.7,0.452]
[1753074001613,0.002,3761.8,3761.5,0.8188]
[1753074002245,0.002,3761.8,3761.6,2.65843796]
[1753074002628,0.002,3761.8,3761.7,2.65837254]
[1753074002833,0.002,3761.8,3761.7,3.11037254]
[1753074003019,0.002,3761.8,3761.4,0.1338]
[1753074003221,2.79129691,3761.6,3761.4,0.001]
[1753074003444,1.20240971,3761.5,3761.4,0.001]
[1753074003746,3.88692377,3761.5,3761.4,0.001]
[1753074003912,3.68182377,3761.5,3761.4,0.001]
[1753074004117,4.1246236,3761.5,3761.4,0.001]
[1753074004319,1.46610971,3761.5,3761.4,0.001]
[1753074004747,0.73360971,3761.5,3761.4,0.001]
[1753074005318,0.15880017,3761.6,3761.4,0.001]
[1753074005518,4.5168,3761.5,3761.4,0.001]
[1753074007451,4.048,3761.5,3761.4,0.001]
[1753074007831,4.5168,3761.5,3761.4,0.001]
[1753074008354,0.4688,3761.5,3761.4,0.001]
[1753074008739,4.5168,3761.5,3761.4,0.001]
[1753074008946,5.25039733,3761.5,3761.4,0.001]
[1753074011251,5.2763975,3761.5,3761.4,0.001]
[1753074011760,4.78159733,3761.5,3761.4,0.001]
[1753074014422,7.88631122,3761.5,3761.4,0.001]
[1753074014661,5.49149733,3761.5,3761.4,0.001]
[1753074017016,4.78159733,3761.5,3761.4,0.001]
[1753074017222,4.048,3761.5,3761.4,0.001]
[1753074018486,4.047,3761.5,3761.4,0.001]
[1753074019886,4.4932,3761.5,3761.4,0.001]
[1753074021479,4.047,3761.5,3761.4,0.001]
[1753074025182,4.046,3761.5,3761.4,0.001]
[1753074025386,4.046,3761.5,3761.4,0.4632]
[1753074026886,0.1328,3761.6,3761.4,0.001]
[1753074027050,4.046,3761.5,3761.4,0.001]
[1753074027677,7.85849406,3761.5,3761.4,0.001]
[1753074027845,7.83249389,3761.5,3761.4,0.001]
[1753074044616,10.83249389,3761.5,3761.4,0.001]
[1753074044908,10.83049389,3761.5,3761.4,0.001]
[1753074051115,11.38049389,3761.5,3761.4,0.001]
[1753074052315,6.47228456,3761.4,3761.3,1e-08]
[1753074052604,12.12016297,3761.4,3761.3,1e-08]
[1753074054175,3.47249662,3761.1,3761.0,1e-08]
[1753074054380,10.64929662,3761.1,3761.0,1e-08]
[1753074054697,11.07679662,3761.1,3761.0,1e-08]
[1753074054912,11.49487662,3761.1,3761.0,1e-08]
[1753074055089,6.90087662,3761.1,3761.0,1e-08]
[1753074055276,10.94387662,3761.1,3761.0,1e-08]
[1753074056137,6.20967662,3761.1,3761.0,1e-08]
[1753074056340,10.25267662,3761.1,3761.0,1e-08]
[1753074056820,11.49387662,3761.1,3761.0,1e-08]
[1753074063164,7.45087662,3761.1,3761.0,1e-08]
[1753074063370,11.49387662,3761.1,3761.0,1e-08]
[1753074064371,7.45087662,3761.1,3761.0,1e-08]
[1753074064677,11.49387662,3761.1,3761.0,1e-08]
[1753074071083,7.13012371,3760.8,3760.7,1e-08]
[1753074071381,11.17312371,3760.8,3760.7,1e-08]
[1753074071593,11.62472371,3760.8,3760.7,1e-08]
[1753074071744,7.96730872,3760.8,3760.7,1e-08]
[1753074073182,7.51570872,3760.8,3760.7,1e-08]
[1753074073485,7.12008872,3760.8,3760.7,1e-08]
[1753074073980,7.57168872,3760.8,3760.7,1e-08]
[1753074074178,3.20907942,3760.7,3760.6,1e-08]
[1753074074353,7.08317959,3760.7,3760.6,1e-08]
[1753074074559,8.23455783,3760.7,3760.6,1e-08]
[1753074077967,7.97085783,3760.7,3760.6,1e-08]
[1753074079668,7.51925783,3760.7,3760.6,1e-08]
[1753074080084,11.56125783,3760.7,3760.6,1e-08]
[1753074080787,6.96925783,3760.7,3760.6,1e-08]
[1753074080957,2.79187942,3760.7,3760.6,1.24950001]
[1753074081303,9.83387942,3760.7,3760.6,1.24950001]
[1753074081599,6.83387942,3760.7,3760.6,1.24950001]
[1753074081908,9.83387942,3760.7,3760.6,1.24950001]
[1753074082104,6.83387942,3760.7,3760.6,1.24950001]
[1753074082676,6.83387942,3760.7,3760.6,1e-08]
[1753074083277,9.83387942,3760.7,3760.6,1e-08]